bitfinex/quotes_ETHUSD_20241123
["timestamp","ask_amount","ask_price","bid_price","bid_amount"]
[1732341618838,0.27943723,3337.3,3336.8,0.2982]
[1732341619199,0.27943723,3337.2,3336.8,0.2982]
[1732341619398,0.16897884,3337.5,3336.8,0.2982]
[1732341619607,0.7535,3337.6,3336.8,0.2982]
[1732341620045,0.27945608,3337.5,3336.8,0.2982]
[1732341620201,0.7535,3337.6,3336.8,0.2982]
[1732341633228,0.7535,3337.6,3336.7,0.2982]
[1732341634349,0.7535,3337.6,3336.5,0.2982]
[1732341635428,0.7535,3337.6,3336.4,0.20357466]
[1732341636069,0.7738,3337.4,3336.4,0.20357466]
[1732341637831,0.7738,3337.4,3336.5,0.2982]
[1732341639366,0.7738,3337.4,3336.5,0.4523]
[1732341639567,0.936,3337.4,3336.5,0.4523]
[1732341640684,0.76930521,3337.4,3336.5,0.4523]
[1732341642770,0.2982,3337.7,3336.5,0.4523]
[1732341643637,1.104,3337.7,3336.5,0.4523]
[1732341644206,1.104,3337.7,3336.9,0.2982]
[1732341644207,0.2982,3337.7,3336.9,0.2982]
[1732341649757,0.2982,3337.7,3337.1,0.2982]
[1732341651192,0.8058,3338.0,3337.1,0.2982]
[1732341651488,0.2982,3337.9,3337.1,0.2982]
[1732341651716,0.2982,3337.9,3337.3,0.2982]
[1732341652072,0.2982,3337.9,3337.5,0.2982]
[1732341654356,0.64248374,3338.2,3337.5,0.2982]
[1732341654556,0.8058,3338.3,3337.5,0.2982]
[1732341657311,1.44036128,3338.3,3337.5,0.2982]
[1732341657511,1.61421741,3338.3,3337.5,0.2982]
[1732341660820,1.59771741,3338.3,3337.5,0.2982]
[1732341662412,0.7893,3338.2,3337.2,0.2982]
[1732341663378,0.7893,3338.2,3337.3,0.2982]
[1732341663693,0.7893,3338.2,3337.5,0.2982]
[1732341665494,0.7893,3338.2,3337.4,0.1586]
[1732341665696,0.7893,3338.2,3337.2,0.2982]
[1732341665926,0.7893,3338.0,3337.2,0.2982]
[1732341666590,0.7893,3338.0,3336.8,0.1586]
[1732341666797,0.7893,3338.0,3336.8,0.4568]
[1732341667322,0.55,3337.9,3336.8,0.2982]
[1732341667623,0.7893,3337.6,3336.8,0.2982]
[1732341667786,0.7893,3337.6,3336.6,0.2982]
[1732341668896,0.7893,3337.6,3336.5,0.2982]
[1732341669319,0.55,3337.5,3336.4,0.20357466]
[1732341669626,0.7893,3337.4,3336.4,0.20357466]
[1732341670399,0.7893,3337.4,3336.5,0.1586]
[1732341671401,0.7893,3337.4,3336.5,0.4568]
[1732341673103,0.7893,3337.4,3336.5,0.2982]
[1732341674129,0.7893,3337.4,3336.5,0.4568]
[1732341676066,0.7893,3337.4,3336.5,0.2982]
[1732341677635,0.7893,3337.4,3336.4,0.20357466]
[1732341677846,0.7893,3337.4,3334.4,0.01]
[1732341677847,0.7893,3337.2,3335.6,0.1586]
[1732341678141,0.55,3336.9,3335.6,0.1586]
[1732341678326,0.7893,3336.8,3335.6,0.1586]
[1732341680123,0.7893,3336.8,3335.7,0.2982]
[1732341683535,1.42567953,3336.8,3335.7,0.2982]
[1732341683935,0.63637953,3336.8,3335.7,0.2982]
[1732341684228,0.8172,3336.7,3335.8,0.2982]
[1732341684416,0.8172,3336.7,3335.3,0.1586]
[1732341684417,0.8172,3336.7,3335.4,0.2982]
[1732341686256,0.55,3336.4,3335.4,0.2982]
[1732341686467,0.8172,3336.3,3335.4,0.2982]
[1732341687652,0.8172,3336.3,3335.0,0.2982]
[1732341691167,0.63143736,3336.3,3335.0,0.2982]
[1732341691473,0.8172,3336.2,3335.0,0.2982]
[1732341691671,0.7972,3336.2,3335.0,0.2982]
[1732341692761,0.19919361,3336.1,3335.0,0.2982]
[1732341692943,0.64473613,3336.4,3335.0,0.2982]
[1732341693167,0.01,3337.1,3335.0,0.2982]
[1732341693788,0.64426313,3337.1,3335.0,0.2982]
[1732341694498,0.55,3337.0,3335.0,0.2982]
[1732341694986,0.8172,3336.7,3335.2,0.2982]
[1732341695185,0.8172,3336.7,3335.4,0.2982]
[1732341696296,0.8172,3336.7,3334.2,0.92951676]
[1732341696297,0.55,3336.6,3335.5,0.2982]
[1732341696505,0.8172,3336.5,3335.5,0.2982]
[1732341696856,0.8172,3336.3,3334.8,0.2982]
[1732341697494,0.55,3336.2,3334.8,0.2982]
[1732341697702,0.01,3337.2,3333.8,0.34650906]
[1732341697703,0.55,3336.0,3334.9,0.2982]
[1732341697902,0.8172,3335.9,3334.9,0.2982]
[1732341698603,0.7972,3335.9,3334.4,0.2982]
[1732341698806,0.7972,3335.9,3334.9,0.2982]
[1732341699778,0.55,3336.0,3334.4,0.2982]
[1732341700697,0.55,3336.0,3333.7,0.1986]
[1732341700698,0.55,3336.0,3333.8,0.2982]
[1732341701383,0.01,3335.9,3333.8,0.2982]
[1732341701566,0.55,3335.7,3333.8,0.2982]
[1732341701770,0.7656,3335.6,3333.8,0.2982]
[1732341702189,0.7656,3335.4,3333.5,0.2982]
[1732341702397,0.7656,3335.2,3333.5,0.2982]
[1732341702907,0.7656,3335.0,3333.5,0.2982]
[1732341703617,0.7656,3335.0,3333.7,0.2982]
[1732341703766,0.7656,3335.0,3333.7,0.64788]
[1732341704360,0.7656,3335.2,3333.7,0.2982]
[1732341704466,0.55,3335.1,3333.7,0.2982]
[1732341704667,0.55,3334.7,3333.2,0.2982]
[1732341704863,0.7656,3334.5,3333.2,0.2982]
[1732341705502,0.7656,3334.5,3333.2,3.2982]
[1732341705870,0.7656,3334.5,3333.3,0.2982]
[1732341706681,0.7656,3334.3,3333.3,0.2982]
[1732341706973,0.7456,3334.3,3332.7,0.2982]
[1732341707399,0.7456,3334.3,3332.9,3.0]
[1732341707571,0.7456,3334.3,3332.9,3.3]
[1732341708498,0.7456,3334.3,3332.9,0.3]
[1732341708807,0.7456,3334.3,3332.7,0.2982]
[1732341709003,0.7456,3334.3,3332.9,3.0]
[1732341709978,0.7456,3334.3,3332.7,0.2982]
[1732341710180,0.7456,3334.3,3332.9,3.0]
[1732341710586,0.7656,3334.2,3332.9,3.0]
[1732341710782,0.7656,3334.0,3333.0,0.3]
[1732341711309,0.7656,3334.0,3332.7,0.2982]
[1732341711687,0.7656,3334.0,3332.9,3.0]
[1732341711895,0.7656,3334.0,3332.7,0.2982]
[1732341712242,0.7656,3334.0,3332.8,3.0]
[1732341712919,0.7656,3334.0,3332.7,0.2982]
[1732341713628,0.7656,3334.0,3332.5,3.0]
[1732341713783,0.7656,3334.0,3332.6,0.32186]
[1732341714329,0.7656,3333.8,3332.1,0.87132642]
[1732341714625,0.7656,3333.6,3332.1,0.2186]
[1732341715329,0.7656,3333.4,3331.6,0.2982]
[1732341715633,0.7656,3333.4,3331.7,0.5168]
[1732341716196,0.5168,3333.3,3331.7,0.5168]
[1732341716438,0.7656,3333.2,3331.7,0.5168]
[1732341717544,0.7656,3333.2,3331.9,0.2982]
[1732341718039,0.7656,3333.0,3331.9,0.2982]
[1732341718514,0.7656,3333.0,3331.5,0.2982]
[1732341720815,0.55,3332.7,3331.5,0.2982]
[1732341721017,0.7522,3332.6,3331.5,0.2982]
[1732341721341,0.7522,3332.6,3331.3,0.3118245]
[1732341722150,0.55,3332.5,3331.3,0.3118245]
[1732341722330,0.7522,3332.4,3331.4,0.2982]
[1732341723275,0.7522,3332.4,3331.3,0.0136245]
[1732341724985,0.7522,3332.3,3331.4,0.2982]
[1732341725134,0.90264,3332.2,3331.4,0.2982]
[1732341725340,0.7522,3332.2,3331.4,0.2982]
[1732341725538,0.7522,3332.2,3331.3,0.0136245]
[1732341726281,0.55,3332.1,3331.3,0.0136245]
[1732341726476,0.7522,3332.0,3331.3,0.0136245]
[1732341730960,0.7522,3332.0,3331.4,0.2982]
[1732341731493,0.7522,3332.0,3331.3,0.0136245]
[1732341732089,0.39327063,3332.5,3331.3,0.0136245]
[1732341732296,0.55,3333.2,3331.3,0.0136245]
[1732341732461,0.90268,3333.2,3331.3,0.0136245]
[1732341733557,0.90268,3333.2,3331.4,0.2982]
[1732341734573,0.90268,3333.2,3331.3,0.0136245]
[1732341735177,0.55,3332.8,3331.3,0.0136245]
[1732341735382,0.7522,3332.7,3331.3,0.0136245]
[1732341735897,0.7522,3332.7,3331.5,0.2982]
[1732341737656,0.7522,3332.7,3331.7,0.2982]
[1732341739601,0.7956,3333.2,3331.9,0.2982]
[1732341739763,0.7956,3333.2,3331.3,0.0136245]
[1732341739764,0.7956,3333.2,3332.1,0.2982]
[1732341741468,0.99191731,3333.2,3332.1,0.2982]
[1732341741670,0.99191731,3333.2,3332.2,0.2982]
[1732341741861,0.99191731,3333.2,3331.8,0.2982]
[1732341742064,0.7956,3333.0,3331.8,0.2982]
[1732341742661,0.7956,3333.0,3331.5,0.2982]
[1732341742861,0.55,3333.1,3331.5,0.2982]
[1732341743059,0.7956,3332.8,3331.5,0.2982]
[1732341745800,1.44518428,3332.8,3331.5,0.2982]
[1732341748200,0.7956,3332.7,3331.5,0.2982]
[1732341749437,1.45477308,3332.7,3331.5,0.2982]
[1732341749611,1.45477308,3332.7,3331.6,0.2982]
[1732341749766,1.45477308,3332.7,3331.8,0.2982]
[1732341752873,1.45477308,3332.7,3331.9,0.7677]
[1732341753219,0.65917308,3332.7,3331.9,0.4693]
[1732341753708,1.44969587,3332.9,3331.9,0.4693]
[1732341754516,0.01,3332.5,3330.2,0.64470906]
[1732341754814,0.7956,3332.4,3331.4,0.2982]
[1732341756496,0.01,3332.5,3331.4,0.2982]
[1732341756709,0.7956,3332.6,3330.6,0.03001528]
[1732341757017,0.7956,3332.6,3331.5,0.2982]
[1732341757315,0.02,3332.7,3331.5,0.2982]
[1732341757625,0.02,3332.7,3331.9,0.2982]
[1732341757787,0.8156,3333.1,3332.1,0.2982]
[1732341757992,0.5268,3333.3,3332.4,0.2031]
[1732341758312,0.5168,3333.3,3332.5,0.2982]
[1732341758612,0.19534589,3333.2,3332.5,0.2982]
[1732341758916,0.5168,3333.3,3332.5,0.2982]
[1732341759125,0.5168,3333.3,3332.4,0.2982]
[1732341761184,0.5168,3333.3,3332.5,0.2982]
[1732341761693,0.5168,3333.3,3332.7,0.2982]
[1732341766305,1.3389,3333.3,3332.7,0.2982]
[1732341766703,1.3389,3333.3,3332.3,0.5011]
[1732341772542,0.8073,3333.2,3332.3,0.5011]
[1732341773045,0.01,3333.1,3332.2,0.2982]
[1732341773225,0.01,3332.9,3332.2,0.2982]
[1732341773397,0.8073,3332.8,3332.2,0.2982]
[1732341773929,0.8073,3332.8,3331.9,0.2982]
[1732341775603,0.8073,3332.8,3331.7,0.2982]
[1732341775803,0.8073,3332.8,3331.7,0.62802]
[1732341775998,0.8073,3332.8,3331.7,0.2982]
[1732341776951,0.8073,3332.7,3331.4,0.2982]
[1732341777246,0.8073,3332.7,3331.7,0.2982]
[1732341777428,0.96527295,3332.7,3331.7,0.2982]
[1732341779302,0.96527295,3332.7,3331.9,0.2982]
[1732341779599,0.8073,3332.7,3331.9,0.2982]
[1732341780949,0.76213867,3333.1,3331.9,0.2982]
[1732341781160,0.7645,3333.0,3332.1,0.2982]
[1732341784144,0.01,3333.1,3332.1,0.2982]
[1732341787093,0.01,3333.2,3332.1,0.2982]
[1732341788422,1.28893867,3333.3,3332.1,0.2982]
[1732341788850,1.28893867,3333.3,3332.2,1.0835]
[1732341788851,0.5168,3333.3,3332.2,1.0835]
[1732341789161,0.5168,3333.3,3332.6,0.2982]
[1732341789362,0.5168,3333.3,3332.8,0.2982]
[1732341789532,0.5168,3333.3,3332.8,1.0835]
[1732341789738,0.5168,3333.3,3332.9,0.03000485]
[1732341789935,0.7645,3334.3,3333.1,0.2982]
[1732341790237,1.2813,3334.3,3333.3,0.2982]
[1732341790638,0.7645,3334.2,3333.3,0.2982]
[1732341791052,0.7645,3334.2,3333.1,0.2982]
[1732341791362,0.7645,3334.2,3333.3,0.2982]
[1732341792134,0.7645,3334.2,3333.0,0.2982]
[1732341792649,0.7645,3334.2,3333.3,0.2982]
[1732341792851,0.7645,3334.2,3333.3,0.62802]
[1732341793054,0.7645,3334.2,3333.5,0.2982]
[1732341793437,0.5168,3334.3,3333.5,0.2982]
[1732341793731,0.5168,3334.3,3333.7,0.2982]
[1732341796534,0.8179,3334.9,3334.0,0.2982]
[1732341796736,0.8179,3334.9,3334.2,0.2982]
[1732341796972,0.8179,3334.5,3334.2,0.2982]
[1732341798769,0.8179,3334.5,3334.1,3.0]
[1732341799576,0.8179,3334.5,3333.8,0.2982]
[1732341800547,0.8179,3334.5,3334.1,3.0]
[1732341800747,0.8179,3334.5,3333.8,0.2982]
[1732341802080,0.8179,3334.9,3334.1,3.0]
[1732341802265,0.8179,3334.9,3334.2,0.41159]
[1732341802445,0.8179,3334.9,3334.2,3.41159]
[1732341802647,0.7971,3335.4,3334.3,0.8177]
[1732341802853,0.7707,3334.8,3334.3,0.8177]
[1732341803049,0.7707,3334.8,3334.3,1.1159]
[1732341803246,0.7971,3335.7,3334.5,0.8177]
[1732341803450,0.7971,3335.3,3334.8,3.0]
[1732341803770,0.7971,3335.7,3334.9,0.41458836]
[1732341803933,0.9237927,3335.6,3334.9,0.41458836]
[1732341804136,0.9237927,3335.6,3334.8,3.2982]
[1732341804558,0.9237927,3335.6,3334.8,0.2982]
[1732341806780,0.9237927,3335.6,3334.7,0.8177]
[1732341806781,0.9237927,3335.6,3334.9,0.2982]
[1732341806977,0.9237927,3335.6,3334.9,3.2982]
[1732341807355,0.7971,3335.5,3334.9,3.2982]
[1732341807675,0.7971,3335.5,3334.9,0.2982]
[1732341807879,0.7971,3335.5,3334.7,0.2982]
[1732341808238,0.7971,3335.5,3335.0,0.2982]
[1732341809244,0.7971,3335.5,3334.6,0.8177]
[1732341809245,0.7971,3335.5,3334.7,0.2982]
[1732341809467,0.7971,3335.5,3335.0,0.2982]
[1732341809856,0.96918927,3335.5,3335.0,0.2982]
[1732341810457,0.96918927,3335.5,3334.6,0.8177]
[1732341810458,0.96918927,3335.5,3334.7,0.2982]
[1732341810644,0.01,3335.4,3334.7,0.2982]
[1732341810853,0.8071,3335.3,3334.7,0.2982]
[1732341811563,0.8071,3335.3,3333.9,0.8177]
[1732341811564,0.8071,3335.3,3334.0,0.2982]
[1732341811754,0.8071,3335.3,3334.0,0.45444415]
[1732341812156,0.7971,3335.3,3334.1,0.02999007]
[1732341812467,0.7971,3335.3,3334.3,0.2982]
[1732341813258,0.78915522,3335.3,3334.3,0.2982]
[1732341813467,0.78915522,3335.3,3334.1,0.2982]
[1732341813659,0.78915522,3335.3,3334.6,0.2982]
[1732341814605,0.78915522,3335.3,3334.4,0.2982]
[1732341814961,0.9237927,3335.6,3334.6,0.2982]
[1732341815162,0.9237927,3335.6,3334.7,0.02998384]
[1732341815371,0.9237927,3335.6,3334.9,0.2982]
[1732341815658,0.1266927,3335.6,3335.4,0.2982]
[1732341816305,0.1266927,3335.6,3335.5,1.14587871]
[1732341816471,0.1266927,3335.6,3335.5,1.1159]
[1732341816862,0.1266927,3335.6,3335.5,4.1159]
[1732341817230,0.1266927,3335.6,3335.5,1.52749]
[1732341817385,0.1266927,3335.6,3335.5,1.1159]
[1732341818103,0.1266927,3335.6,3335.5,1.85301704]
[1732341818257,0.1266927,3335.6,3335.5,1.1159]
[1732341818789,0.1266927,3335.6,3335.5,0.2982]
[1732341819710,0.1266927,3335.6,3335.2,0.2982]
[1732341820785,0.1266927,3335.6,3334.9,0.2982]
[1732341820995,0.1266927,3335.6,3335.1,0.2982]
[1732341821711,0.1266927,3335.6,3335.4,3.0]
[1732341822406,0.1266927,3335.6,3335.4,0.2982]
[1732341822727,0.1266927,3335.6,3335.4,3.2982]
[1732341823217,0.1266927,3335.6,3335.4,0.2982]
[1732341823642,0.1266927,3335.6,3335.1,0.2982]
[1732341824551,0.1266927,3335.6,3335.2,0.02997999]
[1732341824697,0.1266927,3335.6,3335.0,0.02997999]
[1732341824893,0.1266927,3335.6,3335.1,0.2982]
[1732341825329,0.8247,3335.5,3335.1,0.2982]
[1732341825998,0.8247,3335.5,3334.5,0.7661]
[1732341825999,0.8247,3335.5,3334.8,0.2982]
[1732341826236,0.8247,3335.5,3334.8,0.70463]
[1732341826398,0.8247,3335.5,3334.8,0.2982]
[1732341826724,0.1266927,3335.6,3335.0,0.2982]
[1732341827633,0.1266927,3335.6,3335.1,0.2982]
[1732341828626,0.1266927,3335.6,3334.6,0.2982]
[1732341829103,0.1266927,3335.6,3335.0,0.2982]
[1732341829999,0.1266927,3335.6,3334.5,0.7661]
[1732341830000,0.1266927,3335.6,3334.6,3.2982]
[1732341830339,0.1266927,3335.6,3334.8,0.2982]
[1732341831099,0.1266927,3335.6,3334.6,0.2982]
[1732341832745,0.8247,3335.5,3334.6,0.2982]
[1732341833305,0.8247,3335.5,3334.5,0.2982]
[1732341834398,0.8247,3335.5,3334.6,0.2982]
[1732341835036,0.8247,3335.5,3334.6,3.2982]
[1732341835395,0.8247,3335.5,3334.3,0.2982]
[1732341837135,0.8247,3335.5,3334.3,3.2982]
[1732341837450,0.8247,3335.5,3334.3,3.70463]
[1732341837967,0.8247,3335.5,3334.3,0.70463]
[1732341838123,0.8247,3335.5,3334.3,3.2982]
[1732341838329,0.8247,3335.5,3334.3,0.2982]
[1732341838553,0.8247,3335.5,3334.3,3.2982]
[1732341839139,0.8247,3335.5,3334.3,0.2982]
[1732341839347,0.8347,3335.5,3334.4,0.2982]
[1732341839526,0.9929861,3335.4,3334.4,0.2982]
[1732341839731,1.0029861,3335.4,3334.4,0.2982]
[1732341840456,1.0029861,3335.4,3334.0,0.2982]
[1732341840783,0.94511471,3335.3,3334.0,0.47836606]
[1732341841132,0.94511471,3335.3,3334.0,3.47836606]
[1732341841870,0.94511471,3335.3,3334.0,0.47836606]
[1732341842089,0.94511471,3335.3,3334.0,3.47836606]
[1732341842231,0.94511471,3335.3,3334.2,0.2982]
[1732341843131,0.94511471,3335.3,3334.1,0.2982]
[1732341844168,0.758,3335.2,3334.1,0.2982]
[1732341844805,0.758,3335.2,3334.2,0.2982]
[1732341845339,0.778,3335.1,3334.2,0.2982]
[1732341845635,0.778,3335.1,3333.6,0.7775]
[1732341845636,0.778,3335.1,3333.7,0.2982]
[1732341849794,0.768,3335.1,3333.8,0.02999265]
[1732341850688,0.758,3335.1,3333.8,0.02999265]
[1732341850986,0.758,3335.1,3334.0,0.2982]
[1732341851193,0.758,3335.1,3334.0,0.32818798]
[1732341851855,0.758,3335.1,3334.0,0.2982]
[1732341852801,0.758,3335.1,3334.0,0.32818853]
[1732341852967,0.758,3335.1,3334.2,0.2982]
[1732341853371,0.768,3335.1,3334.2,0.2982]
[1732341855197,0.768,3335.1,3333.6,0.2982]
[1732341855403,0.758,3335.1,3333.6,0.3281912]
[1732341856221,0.768,3335.1,3333.6,0.2982]
[1732341856495,0.758,3335.1,3333.7,0.02999115]
[1732341856657,0.758,3335.1,3333.8,0.2982]
[1732341856854,0.758,3335.1,3333.7,3.02999115]
[1732341856855,0.758,3335.1,3334.0,0.2982]
[1732341857771,0.758,3335.1,3334.1,0.2982]
[1732341859108,0.758,3335.1,3334.2,0.02998808]
[1732341859277,0.758,3335.1,3334.4,0.2982]
[1732341859616,0.8077,3335.5,3334.5,0.02998445]
[1732341860372,0.8077,3335.5,3334.7,0.2982]
[1732341860604,0.8077,3335.5,3334.8,0.02998204]
[1732341861215,0.8077,3335.5,3334.7,0.3281817]
[1732341861700,0.8077,3335.5,3334.7,0.2982]
[1732341862124,0.8077,3335.5,3334.8,0.0299817]
[1732341862831,0.1266927,3335.6,3334.8,0.0299817]
[1732341863038,0.1266927,3335.6,3335.3,0.2982]
[1732341863330,0.1266927,3335.6,3335.3,0.62802]
[1732341863933,0.1266927,3335.6,3335.3,0.2982]
[1732341864133,0.1266927,3335.6,3335.4,0.2982]
[1732341865233,0.1266927,3335.6,3335.3,0.2982]
[1732341866257,0.1266927,3335.6,3335.2,0.2982]
[1732341867122,0.1266927,3335.6,3335.5,0.2982]
[1732341867355,0.1266927,3335.6,3335.5,0.62802]
[1732341867541,0.1266927,3335.6,3335.5,1.12317609]
[1732341871957,0.1266927,3335.6,3335.5,1.0932]
[1732341872164,0.1266927,3335.6,3335.5,1.12317363]
[1732341872644,0.1266927,3335.6,3335.5,1.0932]
[1732341872843,0.1266927,3335.6,3335.5,1.31089774]
[1732341873558,0.1266927,3335.6,3335.5,0.48592407]
[1732341876355,0.1266927,3335.6,3335.3,0.2982]
[1732341876547,0.9572927,3335.6,3335.5,3.0]
[1732341877078,0.9572927,3335.6,3335.3,0.2982]
[1732341877784,0.1266927,3335.6,3335.3,0.32817853]
[1732341878483,0.1266927,3335.6,3335.5,3.0]
[1732341878643,0.1266927,3335.6,3335.5,0.33281785]
[1732341878844,0.1266927,3335.6,3335.3,0.32817853]
[1732341879044,0.1266927,3335.6,3335.4,0.02997756]
[1732341879367,0.1266927,3335.6,3335.3,0.2982]
[1732341880490,0.1266927,3335.6,3335.1,0.2982]
[1732341880791,0.1266927,3335.6,3335.2,0.18618958]
[1732341881582,0.1266927,3335.6,3335.2,0.21616923]
[1732341881876,0.1266927,3335.6,3335.2,0.18618958]
[1732341882066,0.793,3335.5,3335.2,0.18618958]
[1732341882593,0.793,3335.5,3335.0,0.76301615]
[1732341882891,0.793,3335.5,3334.9,0.2982]
[1732341883469,0.793,3335.5,3334.8,0.2982]
[1732341884551,0.793,3335.5,3334.4,0.2982]
[1732341885079,0.793,3335.5,3334.6,3.0]
[1732341885265,0.793,3335.5,3334.6,3.4054]
[1732341885593,0.803,3335.5,3334.6,0.4054]
[1732341885793,0.803,3335.5,3334.0,0.2982]
[1732341885994,0.803,3335.5,3334.5,3.0]
[1732341886203,0.793,3335.2,3334.0,0.2982]
[1732341886769,0.793,3335.2,3334.1,0.2982]
[1732341887973,0.793,3335.2,3334.3,3.0]
[1732341888174,0.793,3335.2,3334.3,0.3]
[1732341888373,0.793,3335.2,3334.3,3.0]
[1732341889122,0.793,3335.2,3334.0,0.2982]
[1732341889302,0.793,3335.2,3334.1,0.02998861]
[1732341889512,0.793,3335.2,3334.0,1.054]
[1732341889894,0.793,3335.2,3334.1,0.4586]
[1732341890096,0.793,3335.2,3334.1,0.48858594]
[1732341890603,0.793,3335.2,3334.5,0.2982]
[1732341890916,0.793,3335.2,3334.5,0.32818331]
[1732341893204,0.793,3335.2,3334.5,0.2982]
[1732341893513,0.793,3335.2,3334.7,0.2982]
[1732341894320,0.75,3335.5,3335.1,0.2982]
[1732341895420,0.1266927,3335.6,3335.1,0.2982]
[1732341895580,0.1266927,3335.6,3335.1,0.3281778]
[1732341895981,0.1266927,3335.6,3335.3,0.2982]
[1732341896735,0.1266927,3335.6,3335.3,0.70303]
[1732341896931,0.1266927,3335.6,3335.3,3.2982]
[1732341897318,0.1266927,3335.6,3335.1,0.2982]
[1732341897515,0.1266927,3335.6,3335.4,0.8482]
[1732341897719,0.1266927,3335.6,3335.4,1.23302]
[1732341898316,0.1266927,3335.6,3335.4,0.8482]
[1732341898522,0.1266927,3335.6,3335.4,3.8482]
[1732341899134,0.1266927,3335.6,3335.4,0.8482]
[1732341900540,0.1266927,3335.6,3335.5,3.2982]
[1732341900996,0.1266927,3335.6,3335.5,0.8482]
[1732341902237,0.1266927,3335.6,3335.5,3.2982]
[1732341902444,0.8946927,3335.6,3335.5,3.2982]
[1732341902795,0.8946927,3335.6,3335.5,0.2982]
[1732341903429,0.8946927,3335.6,3334.6,0.8087]
[1732341903430,0.8946927,3335.6,3335.3,0.2982]
[1732341904097,0.9046927,3335.6,3335.3,0.2982]
[1732341904614,0.9046927,3335.6,3334.5,0.2982]
[1732341904798,0.9046927,3335.6,3334.4,0.83867776]
[1732341904799,0.9046927,3335.6,3335.2,0.2982]
[1732341906709,0.9046927,3335.6,3334.6,0.2982]
[1732341907050,0.9046927,3335.6,3335.2,0.2982]
[1732341907903,0.9046927,3335.6,3334.6,0.2982]
[1732341908240,0.9046927,3335.6,3334.7,0.55]
[1732341908436,0.9046927,3335.6,3334.8,0.2982]
[1732341909302,0.8946927,3335.6,3334.6,0.32818341]
[1732341909516,0.8946927,3335.6,3335.2,0.2982]
[1732341910494,0.8946927,3335.6,3334.7,0.2982]
[1732341910696,0.8946927,3335.6,3334.9,0.2982]
[1732341910897,0.8946927,3335.6,3335.2,0.2982]
[1732341911926,0.8946927,3335.6,3334.6,0.2982]
[1732341912134,0.8946927,3335.6,3334.8,0.2982]
[1732341913227,0.8946927,3335.6,3334.9,0.2982]
[1732341914138,0.8946927,3335.6,3334.7,0.32818347]
[1732341914636,0.8946927,3335.6,3334.7,0.2982]
[1732341914842,0.8946927,3335.6,3334.6,0.21226059]
[1732341914843,0.8946927,3335.6,3334.9,0.2982]
[1732341915836,0.8946927,3335.6,3334.7,0.32818209]
[1732341916026,0.8946927,3335.6,3335.2,0.2982]
[1732341916228,0.8946927,3335.6,3335.4,0.2982]
[1732341917261,0.8946927,3335.6,3335.1,0.2982]
[1732341917663,0.1266927,3335.6,3335.1,0.2982]
[1732341917965,0.1266927,3335.6,3335.2,0.02997765]
[1732341918268,0.1266927,3335.6,3335.4,0.2982]
[1732341919766,0.8784927,3335.6,3335.5,0.2982]
[1732341920775,0.8784927,3335.6,3334.6,0.2982]
[1732341920928,0.8784927,3335.6,3334.5,0.2982]
[1732341921132,0.7618,3335.5,3334.5,0.2982]
[1732341922231,0.7618,3335.5,3334.7,0.2982]
[1732341923066,0.7618,3335.5,3334.6,0.1846746]
[1732341923067,0.7618,3335.5,3334.9,0.2982]
[1732341924666,0.7618,3335.5,3335.1,0.2982]
[1732341925569,0.7618,3335.5,3334.9,0.2982]
[1732341926571,0.7618,3335.5,3335.0,3.0]
[1732341926729,0.7618,3335.5,3335.1,0.2982]
[1732341927674,0.01,3335.3,3335.2,0.2982]
[1732341928269,0.00916358,3334.8,3334.1,0.2982]
[1732341928470,0.7518,3334.7,3334.1,0.2982]
[1732341928772,0.7518,3334.7,3333.8,0.2982]
[1732341929550,0.7518,3334.7,3334.4,0.2982]
[1732341930853,0.7518,3334.7,3334.5,0.2982]
[1732341931982,0.7518,3334.7,3334.3,0.2982]
[1732341932148,0.7518,3334.7,3334.6,0.37353366]
[1732341932352,0.7518,3334.9,3334.6,0.2982]
[1732341932551,0.1266927,3335.6,3334.6,0.2982]
[1732341932552,0.76096358,3335.5,3334.6,0.37371274]
[1732341932983,0.76096358,3335.5,3334.6,0.2982]
[1732341933284,0.7518,3335.2,3334.7,0.37368996]
[1732341934154,0.77096358,3335.5,3334.8,0.7906]
[1732341934584,0.77096358,3335.5,3334.9,0.07542104]
[1732341935072,0.77096358,3335.5,3334.7,0.2982]
[1732341935267,0.77096358,3335.5,3334.8,3.07544382]
[1732341935477,0.77096358,3335.5,3334.8,0.07544382]
[1732341935676,0.77096358,3335.5,3334.8,3.37364382]
[1732341935842,0.77096358,3335.5,3334.8,3.7900682]
[1732341936044,0.77096358,3335.5,3334.8,0.7900682]
[1732341936286,0.77096358,3335.5,3334.8,0.37364382]
[1732341938090,0.77096358,3335.5,3334.8,3.37364382]
[1732341938380,0.77096358,3335.5,3334.8,0.37364382]
[1732341938537,0.77096358,3335.5,3334.8,3.37364382]
[1732341938743,0.770964,3335.4,3334.8,0.37364382]
[1732341939180,0.770964,3335.4,3334.8,3.37364382]
[1732341940078,0.770964,3335.4,3334.8,0.37364382]
[1732341941505,0.1266927,3335.6,3334.8,0.37364382]
[1732341941658,0.9544927,3335.6,3334.8,0.37364382]
[1732341941856,0.1266927,3335.6,3334.8,0.37364382]
[1732341942076,0.13585628,3335.6,3334.8,0.37364382]
[1732341942262,0.96365628,3335.6,3335.0,0.2982]
[1732341942623,0.96365628,3335.6,3335.2,0.2982]
[1732341942757,1.14380191,3335.6,3335.3,0.072682]
[1732341942963,1.14380191,3335.6,3335.4,0.2982]
[1732341943168,1.14380191,3335.6,3335.5,0.07263646]
[1732341943375,1.14380191,3335.6,3335.5,0.37083646]
[1732341945613,1.97160191,3335.6,3335.5,0.37083646]
[1732341945796,0.8278,3335.1,3334.4,0.2982]
[1732341946017,0.8278,3335.1,3334.6,0.2982]
[1732341946249,0.8278,3335.1,3334.8,0.2982]